bitfinex/quotes_SOLUSD_20230113
["timestamp","ask_amount","ask_price","bid_price","bid_amount"]
[1673648804746,1e-08,18.548,18.522,333.19248281]
[1673648805672,1e-08,18.548,18.523,20.0]
[1673648806217,1e-08,18.548,18.525,168.9]
[1673648806429,1e-08,18.548,18.526,20.0]
[1673648806739,1e-08,18.548,18.527,168.9]
[1673648807053,1e-08,18.548,18.528,124.7743204]
[1673648807375,1e-08,18.548,18.529,273.6743204]
[1673648807558,1e-08,18.548,18.53,20.0]
[1673648807772,108.40500001,18.56,18.53,241.83271615]
[1673648808194,108.40500001,18.56,18.53,72.93271615]
[1673648808408,6.28747,18.559,18.53,20.0]
[1673648808645,108.40500001,18.56,18.531,221.83271615]
[1673648808850,108.40500001,18.56,18.532,20.0]
[1673648809163,108.40500001,18.56,18.532,213.86780895]
[1673648809477,59.88098552,18.568,18.533,198.8691928]
[1673648809478,29.91179272,18.568,18.533,198.8691928]
[1673648809668,118.9619,18.569,18.534,26.22556]
[1673648809878,125.24937,18.569,18.535,0.65271026]
[1673648810093,6.28747,18.568,18.534,20.0]
[1673648810301,43.73193456,18.568,18.532,110.9659]
[1673648810518,37.44446456,18.567,18.532,110.9659]
[1673648810839,43.28747,18.566,18.532,110.9659]
[1673648811052,6.28747,18.565,18.532,110.9659]
[1673648811262,37.0,18.564,18.532,110.9659]
[1673648811448,6.28747,18.563,18.532,110.9659]
[1673648811660,20.0,18.562,18.532,110.9659]
[1673648811880,6.28747,18.561,18.532,105.9659]
[1673648812087,43.73193456,18.561,18.532,105.9659]
[1673648812504,6.28747,18.561,18.532,105.9659]
[1673648812719,37.44446456,18.56,18.533,20.0]
[1673648813156,6.28747,18.559,18.533,20.0]
[1673648813783,37.44446456,18.558,18.533,20.0]
[1673648813991,37.44446456,18.558,18.535,168.9]
[1673648813992,6.28747,18.557,18.535,168.9]
[1673648814199,45.46826818,18.558,18.533,20.0]
[1673648814605,45.41106818,18.556,18.533,20.0]
[1673648815031,37.44446456,18.557,18.534,29.9691928]
[1673648815235,113.0093,18.56,18.535,20.0]
[1673648815447,113.0093,18.56,18.534,29.9691928]
[1673648815680,113.0093,18.56,18.536,29.9691928]
[1673648816076,113.0093,18.56,18.532,105.9659]
[1673648816505,113.0093,18.56,18.533,29.9691928]
[1673648817780,113.0093,18.56,18.533,72.30346371]
[1673648818286,113.0093,18.56,18.534,29.9691928]
[1673648818702,113.0093,18.56,18.535,62.33427091]
[1673648818918,113.0093,18.56,18.535,20.0]
[1673648819251,113.0093,18.56,18.521,561.2]
[1673648819252,53.2566628,18.559,18.521,392.3]
[1673648819437,6.28747,18.558,18.522,116.8122]
[1673648819650,17.0,18.557,18.522,116.8122]
[1673648819859,116.25437,18.556,18.522,116.8122]
[1673648820176,43.28747,18.555,18.522,116.8122]
[1673648820390,6.28747,18.554,18.522,116.8122]
[1673648820596,20.0,18.553,18.522,116.8122]
[1673648820801,6.28747,18.552,18.522,116.8122]
[1673648821010,5.78747,18.552,18.522,116.8122]
[1673648821876,5.78747,18.552,18.522,157.06647091]
[1673648822063,5.78747,18.552,18.523,20.0]
[1673648822274,29.9691928,18.551,18.523,20.0]
[1673648822585,5.78747,18.552,18.523,20.0]
[1673648822803,6.28747,18.55,18.523,20.0]
[1673648823012,118.73107,18.55,18.523,20.0]
[1673648824477,112.4436,18.55,18.523,20.0]
[1673648825109,112.4436,18.55,18.523,49.9691928]
[1673648825345,112.4436,18.55,18.523,218.8691928]
[1673648825866,112.4436,18.55,18.523,20.0]
[1673648827015,142.4127928,18.55,18.523,20.0]
[1673648827224,112.4436,18.55,18.523,188.9]
[1673648827631,112.4436,18.55,18.523,20.0]
[1673648828491,112.4436,18.55,18.523,188.9]
[1673648828706,112.4436,18.55,18.523,49.9691928]
[1673648829020,112.4436,18.55,18.524,29.9691928]
[1673648829627,112.4436,18.55,18.525,168.9]
[1673648829833,112.4436,18.55,18.522,116.8122]
[1673648830073,112.4436,18.55,18.526,29.9691928]
[1673648830270,112.4436,18.55,18.527,20.0]
[1673648830487,112.4436,18.55,18.523,20.0]
[1673648830691,112.4436,18.55,18.523,188.9]
[1673648832056,112.4436,18.55,18.525,168.9]
[1673648832383,112.4436,18.55,18.524,29.9691928]
[1673648832384,142.4127928,18.55,18.524,27.31506691]
[1673648832589,29.9691928,18.55,18.525,29.9691928]
[1673648832904,113.0093,18.56,18.525,29.9691928]
[1673648833095,111.1756,18.559,18.525,29.9691928]
[1673648833537,111.1756,18.559,18.526,168.02825]
[1673648833750,111.1756,18.559,18.527,20.0]
[1673648833965,111.1756,18.559,18.528,161.8]
[1673648834167,29.9691928,18.558,18.529,20.0]
[1673648834370,111.1756,18.559,18.529,49.9691928]
[1673648834582,29.9691928,18.558,18.529,211.7691928]
[1673648834797,29.9691928,18.558,18.53,43.09254861]
[1673648834993,29.9691928,18.558,18.531,20.0]
[1673648835209,0.9691928,18.558,18.532,112.3168]
[1673648835524,6.28747,18.557,18.532,112.3168]
[1673648835742,20.0,18.556,18.527,29.9691928]
[1673648835953,56.2566628,18.556,18.527,29.9691928]
[1673648836171,6.28747,18.556,18.527,29.9691928]
[1673648836379,6.28747,18.556,18.522,161.8]
[1673648836784,6.28747,18.556,18.524,161.8]
[1673648837216,20.0,18.555,18.525,29.9691928]
[1673648837625,6.28747,18.556,18.525,29.9691928]
[1673648838063,29.9691928,18.555,18.522,161.8]
[1673648838277,29.9691928,18.555,18.523,29.9691928]
[1673648838486,29.9691928,18.555,18.524,161.8]
[1673648838906,29.9691928,18.555,18.525,191.7691928]
[1673648839106,29.9691928,18.555,18.526,20.0]
[1673648839330,29.9691928,18.555,18.526,49.9691928]
[1673648839537,29.9691928,18.555,18.526,20.0]
[1673648839851,6.28747,18.554,18.523,29.9691928]
[1673648840048,20.0,18.553,18.523,29.9691928]
[1673648840266,6.28747,18.552,18.523,29.9691928]
[1673648840460,36.2566628,18.552,18.521,112.3168]
[1673648840671,6.28747,18.552,18.521,112.3168]
[1673648841008,36.2566628,18.552,18.522,29.9691928]
[1673648842045,6.28747,18.552,18.523,20.0]
[1673648842262,20.0,18.553,18.523,20.0]
[1673648842487,20.0,18.558,18.524,29.9691928]
[1673648842680,20.0,18.558,18.525,20.0]
[1673648843011,20.0,18.558,18.526,29.9691928]
[1673648843336,20.0,18.558,18.527,20.0]
[1673648843526,6.28747,18.557,18.527,20.0]
[1673648843740,20.0,18.556,18.528,29.9691928]
[1673648843945,56.2566628,18.556,18.527,20.0]
[1673648844156,36.2566628,18.555,18.528,29.9691928]
[1673648844360,36.2566628,18.555,18.529,20.0]
[1673648844571,29.9691928,18.554,18.521,112.3168]
[1673648844887,29.9691928,18.554,18.525,29.9691928]
[1673648844888,6.28747,18.553,18.525,29.9691928]
[1673648845325,29.9691928,18.552,18.525,29.9691928]
[1673648845509,6.28747,18.553,18.525,29.9691928]
[1673648845720,20.0,18.552,18.525,29.9691928]
[1673648847323,19.5,18.552,18.525,29.9691928]
[1673648847755,19.5,18.552,18.526,20.0]
[1673648848162,19.5,18.552,18.527,29.9691928]
[1673648848475,111.1756,18.559,18.527,191.7691928]
[1673648848689,111.1756,18.559,18.528,20.0]
[1673648848906,111.1756,18.559,18.528,49.9691928]
[1673648849104,111.1756,18.559,18.529,29.9691928]
[1673648849320,36.2566628,18.558,18.53,20.0]
[1673648849530,6.28747,18.557,18.53,20.0]
[1673648849743,6.28747,18.557,18.523,20.0]
[1673648849942,6.28747,18.557,18.527,29.9691928]
[1673648850151,6.28747,18.557,18.528,20.0]
[1673648851103,6.28747,18.557,18.529,29.9691928]
[1673648851315,6.28747,18.557,18.53,20.0]
[1673648851515,6.28747,18.557,18.531,112.3029]
[1673648851727,6.28747,18.557,18.532,20.0]
[1673648852062,6.28747,18.557,18.532,49.9691928]
[1673648852880,36.2566628,18.557,18.514,161.8]
[1673648853107,36.2566628,18.557,18.528,29.9691928]
[1673648853320,20.0,18.556,18.528,29.9691928]
[1673648853950,49.9691928,18.556,18.528,29.9691928]
[1673648854683,6.28747,18.557,18.528,161.8]
[1673648855217,6.28747,18.557,18.529,29.9691928]
[1673648855531,6.28747,18.557,18.53,116.7821]
[1673648855746,6.28747,18.557,18.531,20.0]
[1673648855936,6.28747,18.557,18.531,49.9691928]
[1673648856138,6.28747,18.557,18.531,20.0]
[1673648856354,6.28747,18.557,18.531,49.9691928]
[1673648856795,6.28747,18.557,18.531,20.0]
[1673648856989,6.28747,18.557,18.531,49.9691928]
[1673648857320,36.2566628,18.557,18.531,49.9691928]
[1673648857737,36.2566628,18.557,18.531,20.0]
[1673648858262,6.28747,18.557,18.531,20.0]
[1673648858476,111.1756,18.559,18.532,161.8]
[1673648858667,111.1756,18.559,18.533,20.0]
[1673648859206,111.1756,18.559,18.534,29.9691928]
[1673648859410,111.1756,18.559,18.535,20.0]
[1673648859617,113.0093,18.56,18.535,211.7691928]
[1673648859824,113.0093,18.56,18.535,64.10329921]
[1673648860039,113.0093,18.56,18.535,49.9691928]
[1673648860680,10.299004,18.567,18.536,161.8]
[1673648860994,10.299004,18.567,18.537,20.0]
[1673648861186,10.299004,18.567,18.538,161.8]
[1673648861396,10.299004,18.567,18.538,191.7691928]
[1673648861605,10.299004,18.567,18.539,20.0]
[1673648861834,40.2681968,18.567,18.539,128.0772]
[1673648862469,10.299004,18.567,18.539,128.0772]
[1673648862660,10.299004,18.567,18.539,167.82983254]
[1673648862874,40.2681968,18.567,18.539,167.82983254]
[1673648863186,20.0,18.566,18.539,186.33343679]
[1673648863403,20.0,18.566,18.539,147.82983254]
[1673648864140,20.0,18.566,18.539,186.33343679]
[1673648864556,20.0,18.566,18.539,147.82983254]
[1673648864979,10.299004,18.567,18.539,147.82983254]
[1673648865202,10.299004,18.567,18.541,161.8]
[1673648865402,10.299004,18.567,18.539,108.0772]
[1673648865926,10.299004,18.567,18.539,138.0463928]
[1673648866250,10.299004,18.567,18.54,20.0]
[1673648867079,10.299004,18.567,18.54,134.3031]
[1673648867294,10.299004,18.567,18.54,296.1031]
[1673648868138,10.299004,18.567,18.542,161.8]
[1673648868328,10.299004,18.567,18.543,20.0]
[1673648870135,10.299004,18.567,18.543,49.9691928]
[1673648870342,10.299004,18.567,18.544,78.25623679]
[1673648870551,10.299004,18.567,18.545,20.0]
[1673648870875,29.9691928,18.566,18.546,43.89529921]
[1673648871083,10.299004,18.567,18.547,20.0]
[1673648871296,10.299004,18.567,18.547,65.75760425]
[1673648871497,29.9691928,18.566,18.547,20.0]
[1673648871712,29.9691928,18.566,18.541,20.0]
[1673648872431,149.4999928,18.566,18.541,20.0]
[1673648874121,119.5308,18.566,18.539,108.0772]
[1673648874869,119.5308,18.566,18.54,29.9691928]
[1673648875183,119.5308,18.566,18.541,20.0]
[1673648875391,119.5308,18.566,18.541,68.83529921]
[1673648875599,119.5308,18.566,18.541,98.80449201]
[1673648875797,119.5308,18.566,18.541,49.9691928]
[1673648876653,119.5308,18.566,18.541,20.0]
[1673648876855,119.5308,18.566,18.541,49.9691928]
[1673648877687,119.5308,18.566,18.541,20.0]
[1673648877899,10.299004,18.567,18.541,20.0]
[1673648878109,10.299004,18.567,18.542,29.9691928]
[1673648878334,10.299004,18.567,18.543,20.0]
[1673648879401,10.299004,18.567,18.543,49.9691928]
[1673648883273,10.299004,18.567,18.543,20.0]
[1673648883479,10.299004,18.567,18.541,20.0]
[1673648883710,10.299004,18.567,18.541,49.9691928]
[1673648884116,10.299004,18.567,18.542,29.9691928]
[1673648884329,10.299004,18.567,18.543,20.0]
[1673648884542,16.586474,18.567,18.543,20.0]
[1673648884760,16.586474,18.567,18.541,20.0]
[1673648885907,16.586474,18.567,18.541,49.9691928]
[1673648886229,16.586474,18.567,18.541,20.0]
[1673648887052,46.5556668,18.567,18.541,49.9691928]
[1673648887263,16.586474,18.567,18.541,20.0]
[1673648887687,50.70383591,18.567,18.542,20.0]
[1673648888338,50.70383591,18.567,18.541,20.0]
[1673648889485,50.70383591,18.567,18.542,29.9691928]
[1673648889699,50.70383591,18.567,18.543,20.0]
[1673648890314,50.70383591,18.567,18.539,108.0772]
[1673648890635,56.2566628,18.566,18.539,108.0772]
[1673648890839,23.28747,18.565,18.523,161.8]
[1673648891051,26.28747,18.564,18.531,115.6256]
[1673648891262,23.28747,18.563,18.531,115.6256]
[1673648891486,26.28747,18.562,18.532,29.9691928]
[1673648891806,6.28747,18.561,18.532,29.9691928]
[1673648892317,40.40483191,18.561,18.532,29.9691928]
[1673648892531,227.7691,18.56,18.532,29.9691928]
[1673648892743,227.7691,18.56,18.531,115.6256]
[1673648892744,1.16764475,18.558,18.531,115.6256]
[1673648892936,1.16764475,18.556,18.531,115.6256]
[1673648893148,6.28747,18.557,18.531,115.6256]
[1673648893149,1.23056757,18.554,18.531,115.6256]
[1673648893375,227.7691,18.56,18.532,29.9691928]
[1673648893587,6.28747,18.559,18.532,29.9691928]
[1673648893988,6.28747,18.559,18.531,115.6256]
[1673648894199,0.72632749,18.558,18.532,20.0]
[1673648894419,6.28747,18.559,18.532,20.0]
[1673648895461,46.70525224,18.558,18.532,20.0]
[1673648896091,113.4527,18.557,18.532,20.0]
[1673648896525,0.75973781,18.556,18.532,20.0]
[1673648897366,113.4527,18.557,18.532,20.0]
[1673648897982,0.65825634,18.556,18.532,20.0]
[1673648898194,47.36350858,18.556,18.532,20.0]
[1673648898412,47.36350858,18.556,18.532,49.9691928]
[1673648898853,1.14691963,18.554,18.532,20.0]
[1673648899037,1.14691963,18.554,18.533,29.9691928]
[1673648899243,1.14691963,18.554,18.534,20.0]
[1673648899451,84.69839398,18.554,18.534,20.0]
[1673648899661,37.51858557,18.554,18.534,20.0]
[1673648899873,113.4527,18.557,18.532,20.0]
[1673648900097,0.79890261,18.556,18.532,20.0]
[1673648900305,0.94447058,18.554,18.532,20.0]
[1673648900517,6.28747,18.555,18.532,20.0]
[1673648900828,48.89288878,18.56,18.533,191.7691928]
[1673648901040,3.855229,18.574,18.533,191.7691928]
[1673648901041,109.6994,18.569,18.534,20.0]
[1673648901364,109.6994,18.569,18.535,161.8]
[1673648901569,109.6994,18.569,18.536,20.0]
[1673648901768,109.6994,18.569,18.537,161.8]
[1673648901973,109.6994,18.569,18.538,20.0]
[1673648902184,109.6994,18.569,18.538,49.9691928]
[1673648902398,109.6994,18.569,18.538,211.7691928]
[1673648902639,3.855229,18.574,18.539,197.9930728]
[1673648902941,3.855229,18.574,18.54,20.0]
[1673648903134,3.855229,18.574,18.541,161.8]
[1673648903344,9.299004,18.567,18.542,26.22287]
[1673648903569,9.299004,18.567,18.543,168.02254]
[1673648903782,9.299004,18.567,18.544,20.0]
[1673648904095,9.299004,18.567,18.545,168.02187]
[1673648904305,9.299004,18.567,18.546,20.0]
[1673648904494,9.299004,18.567,18.547,161.8]
[1673648904706,9.299004,18.567,18.548,20.0]
[1673648904921,9.299004,18.567,18.549,6.82509552]
[1673648905133,9.299004,18.567,18.55,188.02019]
[1673648905362,3.855229,18.574,18.551,7.58977833]
[1673648905557,3.855229,18.574,18.552,188.01952]
[1673648905765,3.855229,18.574,18.553,7.58910833]
[1673648905976,3.855229,18.574,18.554,20.0]
[1673648906188,3.855229,18.574,18.555,161.8]
[1673648906414,99.370118,18.599,18.556,26.21818]
[1673648906624,99.370118,18.599,18.557,169.47507799]
[1673648906829,99.370118,18.599,18.558,26.21751]
[1673648907034,6.28747,18.598,18.559,1.45723799]
[1673648907368,20.0,18.597,18.559,70.41775352]
[1673648907687,6.28747,18.596,18.56,89.8271822]
[1673648907879,6.28747,18.596,18.561,1.45723799]
[1673648908090,21.496337,18.602,18.562,168.01617]
[1673648908295,29.9691928,18.601,18.563,27.91513207]
[1673648908501,6.28747,18.599,18.563,21.69930207]
[1673648908727,6.28747,18.599,18.563,51.66849487]
[1673648908936,20.0,18.598,18.563,51.66849487]
[1673648909149,6.28747,18.597,18.563,49.9691928]
[1673648909464,37.0,18.596,18.563,20.0]
[1673648909675,6.28747,18.595,18.563,20.0]
[1673648909875,37.0,18.594,18.562,15.0]
[1673648910083,6.28747,18.593,18.559,20.0]
[1673648910319,20.0,18.592,18.559,49.9691928]
[1673648910624,49.9691928,18.592,18.56,49.49502784]
[1673648910838,36.2566628,18.591,18.561,0.69854919]
[1673648911145,6.28747,18.591,18.562,49.49502784]
[1673648911341,6.28747,18.591,18.564,0.68939556]
[1673648911553,112.3648,18.59,18.563,20.0]
[1673648911758,112.3648,18.59,18.563,49.9691928]
[1673648911969,142.3339928,18.59,18.564,49.49502784]
[1673648912179,73.2566628,18.589,18.564,49.49502784]
[1673648912388,6.28747,18.588,18.556,29.9691928]
[1673648912610,20.0,18.587,18.556,29.9691928]
[1673648912826,6.28747,18.586,18.556,79.46422064]
[1673648913024,20.0,18.585,18.556,79.46422064]
[1673648913439,19.0,18.585,18.556,79.46422064]
[1673648914496,25.28747,18.585,18.55,115.0472]
[1673648914708,6.28747,18.584,18.556,29.9691928]
[1673648915034,6.28747,18.584,18.557,29.9691928]
[1673648915245,6.28747,18.584,18.551,49.49502784]
[1673648915246,20.0,18.583,18.551,49.49502784]
[1673648915441,6.28747,18.582,18.541,108.8321]
[1673648915648,20.0,18.581,18.552,29.9691928]
[1673648915859,6.28747,18.58,18.541,160.65033784]
[1673648916083,111.8497,18.589,18.542,81.78709064]
[1673648916294,111.8497,18.589,18.543,6.22254]
[1673648916295,6.28747,18.588,18.543,6.22254]
[1673648916501,6.28747,18.588,18.543,128.61066006]
[1673648916815,6.28747,18.588,18.544,152.35731286]
[1673648917032,6.28747,18.588,18.544,122.38812006]
[1673648917242,6.28747,18.588,18.545,96.79309222]
[1673648917455,6.28747,18.588,18.545,140.80140357]
[1673648917676,6.28747,18.588,18.546,73.97750415]
[1673648917879,17.0,18.587,18.547,20.0]
[1673648918198,6.28747,18.586,18.547,93.97750415]
[1673648918409,6.28747,18.586,18.548,120.80140357]
[1673648918630,6.28747,18.586,18.549,20.0]
[1673648918818,20.0,18.585,18.549,123.94669695]
[1673648919149,6.28747,18.584,18.55,73.97750415]
[1673648919339,6.28747,18.584,18.551,138.163]
[1673648919550,6.28747,18.584,18.551,212.14050415]
[1673648919767,6.28747,18.584,18.552,73.97750415]
[1673648919982,6.28747,18.584,18.553,20.0]
[1673648920188,6.28747,18.584,18.553,93.97750415]
[1673648920394,6.28747,18.584,18.554,73.97750415]
[1673648920942,6.28747,18.584,18.555,93.97750415]
[1673648921139,20.0,18.583,18.555,93.97750415]
[1673648921339,6.28747,18.582,18.556,29.9691928]
[1673648921755,6.28747,18.582,18.557,20.0]
[1673648922192,6.28747,18.582,18.558,29.9691928]
[1673648922803,6.28747,18.582,18.559,20.0]
[1673648923224,6.28747,18.582,18.56,29.9691928]
[1673648923441,6.28747,18.582,18.56,74.32417081]
[1673648923861,6.28747,18.582,18.561,29.9691928]
[1673648924711,6.28747,18.582,18.562,20.0]
[1673648925122,6.28747,18.582,18.563,29.9691928]
[1673648925343,6.28747,18.582,18.562,20.0]
[1673648925344,6.28747,18.582,18.564,20.0]
[1673648925560,6.28747,18.582,18.563,29.9691928]
[1673648925768,6.28747,18.582,18.564,49.9691928]
[1673648926197,6.28747,18.582,18.551,118.163]
[1673648926198,6.28747,18.582,18.565,29.9691928]
[1673648926801,6.28747,18.582,18.552,44.87497801]
[1673648927011,6.28747,18.582,18.553,29.9691928]
[1673648927555,111.8497,18.589,18.553,29.9691928]
[1673648927556,93.13717,18.589,18.553,29.9691928]
[1673648927761,26.28747,18.588,18.554,44.87497801]
[1673648928086,12.78747,18.587,18.555,29.9691928]
[1673648928280,26.28747,18.586,18.555,29.9691928]
[1673648928497,6.28747,18.585,18.555,29.9691928]
[1673648928703,20.0,18.584,18.555,29.9691928]
[1673648928926,20.0,18.584,18.555,77.27083748]
[1673648930080,20.0,18.584,18.555,47.30164468]
[1673648930081,26.28747,18.584,18.555,47.30164468]
[1673648930291,23.28747,18.583,18.551,118.163]
[1673648930502,26.28747,18.582,18.551,118.163]
[1673648930811,6.28747,18.581,18.552,59.9383856]
[1673648931024,6.28747,18.581,18.552,29.9691928]
[1673648931230,112.216,18.58,18.552,29.9691928]
[1673648931446,112.216,18.58,18.553,20.0]
[1673648931985,112.216,18.58,18.554,29.9691928]
[1673648932182,112.216,18.58,18.555,20.0]
[1673648932605,112.216,18.58,18.556,29.9691928]
[1673648932824,112.216,18.58,18.557,20.0]
[1673648933242,112.216,18.58,18.558,29.9691928]
[1673648935329,112.216,18.58,18.559,20.0]
[1673648935876,112.216,18.58,18.56,29.9691928]
[1673648936490,35.11713381,18.587,18.56,29.9691928]
[1673648936702,112.3648,18.59,18.562,161.8]
[1673648936703,33.99910544,18.588,18.562,161.8]
[1673648936912,33.99910544,18.588,18.563,20.0]
[1673648937126,112.3648,18.59,18.564,161.8]
[1673648937336,112.3648,18.59,18.565,20.0]
[1673648937655,112.3648,18.59,18.565,86.54356867]
[1673648937866,112.3648,18.59,18.567,161.8]
[1673648938062,117.326,18.599,18.566,66.54356867]
[1673648938393,123.61347,18.599,18.568,66.54356867]
[1673648938792,123.61347,18.599,18.569,66.54356867]
[1673648939330,123.61347,18.599,18.57,29.9691928]
[1673648939548,123.61347,18.599,18.57,66.54356867]
[1673648939742,123.61347,18.599,18.57,29.9691928]
[1673648939952,123.61347,18.599,18.571,29.9691928]
[1673648940171,20.0,18.598,18.567,20.0]
[1673648940390,20.0,18.598,18.568,36.57437587]
[1673648940589,26.28747,18.598,18.568,29.9691928]
[1673648940799,26.28747,18.598,18.569,59.9383856]
[1673648941013,26.28747,18.598,18.569,29.9691928]
[1673648942178,36.2566628,18.597,18.567,20.0]
[1673648942375,26.28747,18.596,18.562,20.0]
[1673648942586,23.28747,18.595,18.562,20.0]
[1673648942808,26.28747,18.594,18.557,422.2691928]
[1673648943014,23.28747,18.593,18.56,29.9691928]
[1673648943215,26.28747,18.592,18.56,29.9691928]
[1673648943540,23.28747,18.591,18.561,29.9691928]
[1673648943758,26.28747,18.59,18.557,392.3]
[1673648943970,23.28747,18.589,18.557,392.3]
[1673648944164,26.28747,18.588,18.557,392.3]
[1673648944384,6.28747,18.587,18.558,29.9691928]
[1673648944598,20.0,18.586,18.558,29.9691928]
[1673648944912,6.28747,18.585,18.558,29.9691928]
[1673648945125,20.0,18.584,18.558,29.9691928]
[1673648945329,6.28747,18.583,18.558,29.9691928]
[1673648945545,1.0,18.564,18.558,29.9691928]
[1673648945746,1.0,18.564,18.553,115.9095]
[1673648945959,1.0,18.564,18.554,29.9691928]
[1673648946685,1.0,18.564,18.555,20.0]
[1673648946896,1.0,18.564,18.554,20.0]
[1673648947228,1.0,18.564,18.556,29.9691928]
[1673648947544,1.0,18.564,18.557,20.0]
[1673648947948,1.0,18.564,18.558,29.9691928]
[1673648948153,1.0,18.564,18.557,20.0]
[1673648948369,1.0,18.564,18.554,20.0]
[1673648948788,1.0,18.564,18.536,161.8]
[1673648949022,1.0,18.564,18.532,77.69925904]
[1673648949023,1.0,18.564,18.541,110.5413]
[1673648949945,1.0,18.564,18.535,29.9691928]
[1673648950162,7.28747,18.564,18.532,110.5413]
[1673648950357,6.28747,18.563,18.532,110.5413]
[1673648950783,1.0,18.564,18.533,191.7691928]
[1673648951208,43.37938242,18.563,18.533,29.9691928]
[1673648951427,41.9969354,18.563,18.534,29.9691928]
[1673648951645,1.0,18.564,18.534,29.9691928]
[1673648952254,6.28747,18.563,18.534,29.9691928]
[1673648952692,6.28747,18.563,18.535,20.0]
[1673648952901,1.0,18.564,18.535,20.0]
[1673648953214,1.0,18.564,18.533,20.0]
[1673648953636,1.0,18.564,18.533,211.7691928]
[1673648954251,1.0,18.564,18.533,49.9691928]
[1673648954563,1.0,18.564,18.533,211.7691928]
[1673648955091,1.0,18.564,18.535,161.8]
[1673648955310,1.0,18.564,18.536,20.0]
[1673648955511,1.0,18.564,18.536,49.9691928]
[1673648955726,1.0,18.564,18.537,29.9691928]
[1673648955939,1.0,18.564,18.538,20.0]
[1673648956350,1.0,18.564,18.539,29.9691928]
[1673648956563,1.0,18.564,18.54,20.0]
[1673648957201,1.0,18.564,18.541,29.9691928]
[1673648957411,1.0,18.564,18.542,20.0]
[1673648957832,1.0,18.564,18.542,49.9691928]
[1673648958037,1.0,18.564,18.542,20.0]
[1673648958663,1.0,18.564,18.543,29.9691928]
[1673648958907,1.0,18.564,18.544,20.0]
[1673648960459,1.0,18.564,18.542,20.0]
[1673648961406,110.2544,18.569,18.542,20.0]
[1673648961618,6.28747,18.563,18.542,20.0]
[1673648962024,30.89213154,18.562,18.53,78.787]
[1673648962252,6.28747,18.561,18.531,136.7299]
[1673648962464,6.28747,18.561,18.531,116.7299]
[1673648962862,118.5169,18.56,18.531,116.7299]
[1673648963076,6.28747,18.559,18.531,116.7299]
[1673648964240,94.14799754,18.558,18.531,116.7299]
[1673648964452,6.28747,18.557,18.531,116.7299]
[1673648964868,6.28747,18.557,18.532,29.9691928]
[1673648965072,118.5169,18.56,18.532,29.9691928]
[1673648965281,118.5169,18.56,18.533,20.0]
[1673648965715,118.5169,18.56,18.534,29.9691928]
[1673648965928,118.5169,18.56,18.533,20.0]
[1673648965929,118.5169,18.56,18.535,20.0]
[1673648966140,6.28747,18.559,18.533,20.0]
[1673648966978,1.0,18.534,18.533,29.9691928]
[1673648967384,1.0,18.534,18.533,49.9691928]
[1673648967589,1.0,18.534,18.533,20.0]
[1673648968022,1.0,18.534,18.532,20.0]
[1673648973178,90.85407937,18.56,18.532,20.0]
[1673648973382,32.73599954,18.558,18.523,392.3]
[1673648973707,32.73599954,18.558,18.524,20.0]
[1673648973940,17.0,18.557,18.524,20.0]
[1673648974323,32.73599954,18.558,18.525,29.9691928]
[1673648974532,32.73599954,18.558,18.526,20.0]
[1673648974870,32.73599954,18.558,18.527,29.9691928]
[1673648975085,32.73599954,18.558,18.528,20.0]
[1673648975582,32.73599954,18.558,18.529,29.9691928]
[1673648975793,32.73599954,18.558,18.53,20.0]
[1673648976003,32.73599954,18.558,18.531,115.8642]